lending/lending_fUSD_20241103
["ID","MTS","AMOUNT","RATE_DAILY","PERIOD"]
[341216694,1730663432751,-500.0,0.00037588,2]
[341216695,1730663432946,-500.0,0.00037588,2]
[341216696,1730663432965,-237.76135399,0.00037588,2]
[341216697,1730663432976,-500.0,0.00037588,2]
[341216698,1730663432988,-26193.2352,0.00037589,2]
[341216699,1730663433001,-26089.3011,0.00037589,2]
[341216700,1730663433011,-1000.0,0.00037589,2]
[341216701,1730663433020,-16950.03579575,0.00037589,2]
[341216702,1730663433033,-498.92723845,0.00037589,2]
[341216703,1730663433045,-200932.9315658,0.00037589,2]
[341216704,1730663433054,-2000.0,0.00037618,2]
[341216705,1730663433063,-560.85692919,0.00037679,2]
[341216706,1730663433073,-472.84259817,0.00037679,2]
[341216707,1730663433082,-500.0,0.00037679,2]
[341216708,1730663433093,-300.0,0.00037688,10]
[341216709,1730663433103,-300.0,0.00037688,10]
[341216710,1730663433112,-300.0,0.00037688,10]
[341216711,1730663433121,-300.0,0.00037688,10]
[341216712,1730663433131,-500.0,0.00037688,2]
[341216713,1730663433140,-500.0,0.00037688,2]
[341216714,1730663433149,-362.86,0.00037688,2]
[341216715,1730663433159,-500.0,0.00037688,2]
[341216716,1730663433169,-500.0,0.00037688,2]
[341216717,1730663433178,-500.0,0.00037688,2]
[341216718,1730663433188,-150.0,0.000377,2]
[341216719,1730663433198,-465.92144214,0.000377,2]
[341216720,1730663433207,-150.0,0.00037702,2]
[341216721,1730663433217,-150.0,0.00037705,2]
[341216722,1730663433226,-150.0,0.00037709,2]
[341216723,1730663433235,-150.0,0.00037712,2]
[341216724,1730663433245,-150.0,0.00037713,2]
[341216725,1730663433254,-150.0,0.00037716,2]
[341216726,1730663433265,-150.0,0.00037717,2]
[341216727,1730663433274,-150.0,0.00037718,2]
[341216728,1730663433283,-719.253,0.00037721,2]
[341216729,1730663433292,-166.6545,0.00037721,2]
[341216730,1730663433301,-150.0,0.00037725,2]
[341216731,1730663433311,-150.0,0.00037729,2]
[341216732,1730663433320,-150.0,0.0003773,2]
[341216733,1730663433329,-150.0,0.00037734,2]
[341216734,1730663433339,-150.0,0.00037736,2]
[341216735,1730663433348,-150.0,0.00037736,2]
[341216736,1730663433359,-150.0,0.00037741,2]
[341216737,1730663433369,-150.0,0.00037743,2]
[341216738,1730663433378,-150.0,0.00037747,2]
[341216739,1730663433389,-150.0,0.00037753,2]
[341216740,1730663433398,-150.0,0.00037753,2]
[341216741,1730663433408,-150.0,0.00037756,2]
[341216742,1730663433420,-150.0,0.00037756,2]
[341216743,1730663433429,-150.0,0.00037756,2]
[341216744,1730663433438,-150.0,0.00037757,2]
[341216745,1730663433448,-150.0,0.00037758,2]
[341216746,1730663433457,-150.0,0.00037759,2]
[341216747,1730663433466,-150.0,0.00037764,2]
[341216748,1730663433476,-150.0,0.00037764,2]
[341216749,1730663433485,-150.0,0.00037768,2]
[341216750,1730663433494,-150.0,0.00037768,2]
[341216751,1730663433503,-150.0,0.00037769,2]
[341216752,1730663433513,-150.0,0.00037774,2]
[341216753,1730663433522,-150.0,0.00037775,2]
[341216754,1730663433531,-150.0,0.00037775,2]
[341216755,1730663433540,-150.0,0.00037792,2]
[341216756,1730663433550,-150.0,0.00037792,2]
[341216757,1730663433559,-150.0,0.00037798,2]
[341216758,1730663433568,-300.0,0.00037799,10]
[341216759,1730663433578,-300.0,0.00037799,10]
[341216760,1730663433587,-300.0,0.00037799,10]
[341216761,1730663433596,-300.0,0.00037799,10]
[341216762,1730663433606,-150.0,0.00037799,2]
[341216763,1730663433615,-19967.102163,0.000378,2]
[341216764,1730663433625,-151.0,0.000378,7]
[341216765,1730663433635,-150.0,0.00037801,2]
[341216766,1730663433644,-150.0,0.00037807,2]
[341216767,1730663433654,-150.0,0.00037828,2]
[341216768,1730663433664,-150.0,0.00037829,2]
[341216769,1730663433674,-150.0,0.0003783,2]
[341216770,1730663433684,-150.0,0.00037832,2]
[341216771,1730663433694,-150.0,0.00037832,2]
[341216772,1730663433704,-150.0,0.0003784,2]
[341216773,1730663433715,-150.0,0.00037844,2]
[341216774,1730663433724,-150.0,0.00037845,2]
[341216775,1730663433734,-150.0,0.00037849,2]
[341216776,1730663433744,-150.0,0.00037849,2]
[341216777,1730663433754,-150.0,0.00037851,2]
[341216778,1730663433764,-150.0,0.00037854,2]
[341216779,1730663433773,-150.0,0.00037855,2]
[341216780,1730663433783,-500.0,0.00037862,2]
[341216781,1730663433793,-9857.87,0.00037862,2]
[341216782,1730663433802,-376.25,0.00037862,2]
[341216783,1730663433812,-780.26,0.00037862,2]
[341216784,1730663433822,-1253.78,0.00037862,2]
[341216785,1730663433831,-609.19,0.00037862,2]
[341216786,1730663433841,-500.0,0.00037862,2]
[341216787,1730663433850,-500.0,0.00037862,2]
[341216788,1730663433860,-500.0,0.00037862,2]
[341216789,1730663433870,-500.0,0.00037862,2]
[341216790,1730663433880,-704.21,0.00037862,2]
[341216791,1730663433889,-500.0,0.00037862,2]
[341216792,1730663433899,-528.78597458,0.00037862,2]
[341216793,1730663433908,-342.73,0.00037862,2]
[341216794,1730663433919,-150.0,0.00037866,2]
[341216795,1730663433929,-151.80568782,0.00037868,2]
[341216796,1730663433938,-150.0,0.00037868,2]
[341216797,1730663433948,-150.0,0.00037869,2]
[341216798,1730663433958,-150.0,0.00037878,2]
[341216799,1730663433968,-150.0,0.00037878,2]
[341216800,1730663433977,-150.0,0.00037879,2]
[341216801,1730663433987,-150.0,0.00037882,2]
[341216802,1730663434001,-150.0,0.00037883,2]
[341216803,1730663434012,-150.0,0.00037884,2]
[341216804,1730663434021,-150.0,0.00037887,2]
[341216805,1730663434031,-1198.13161937,0.00037889,3]
[341216806,1730663434042,-150.0,0.00037898,2]
[341216807,1730663434051,-198.9415,0.000379,10]
[341216808,1730663434061,-214.98459352,0.000379,2]
[341216809,1730663434073,-713.53066606,0.000379,2]
[341216810,1730663434083,-150.0,0.00037904,2]
[341216811,1730663434093,-154.0,0.0003791,5]
[341216812,1730663434103,-150.0,0.0003791,2]
[341216813,1730663434113,-150.0,0.0003791,2]
[341216814,1730663434123,-150.0,0.00037911,2]
[341216815,1730663434133,-150.0,0.00037911,2]
[341216816,1730663434143,-150.0,0.00037911,2]
[341216817,1730663434153,-150.0,0.00037923,2]
[341216818,1730663434163,-150.0,0.00037928,2]
[341216819,1730663434175,-150.0,0.00037932,2]
[341216820,1730663434185,-150.0,0.00037934,2]
[341216821,1730663434195,-150.0,0.00037943,2]
[341216822,1730663434206,-150.0,0.00037947,2]
[341216823,1730663434215,-500.0,0.00037953,2]
[341216824,1730663434225,-150.0,0.00037953,2]
[341216825,1730663434235,-150.0,0.00037953,2]
[341216826,1730663434244,-150.0,0.00037957,2]
[341216827,1730663434255,-150.0,0.00037958,2]
[341216828,1730663434264,-150.0,0.0003796,2]
[341216829,1730663434274,-300.0,0.00037961,10]
[341216830,1730663434284,-300.0,0.00037961,10]
[341216831,1730663434293,-300.0,0.00037961,10]
[341216832,1730663434303,-300.0,0.00037961,10]
[341216833,1730663434313,-500.0,0.00037962,2]
[341216834,1730663434322,-500.0,0.00037962,2]
[341216835,1730663434331,-303.15,0.00037962,2]
[341216836,1730663434340,-150.0,0.00037971,2]
[341216837,1730663434350,-500.0,0.00037973,5]
[341216838,1730663434361,-500.0,0.00037973,5]
[341216839,1730663434372,-150.0,0.00037978,2]
[341216840,1730663434382,-179.62958989,0.0003799,2]
[341216841,1730663434392,-2779.84497791,0.00037998,2]
[341216842,1730663434402,-300.0,0.00037999,10]
[341216843,1730663434411,-300.0,0.00037999,10]
[341216844,1730663434422,-171.105544,0.00037999,7]
[341216845,1730663434437,-154.72698,0.00037999,7]
[341216846,1730663434447,-162.402684,0.00037999,7]
[341216847,1730663434458,-239.37085,0.00037999,7]
[341216848,1730663434468,-151.0,0.00037999,7]
[341216849,1730663434478,-151.0,0.00037999,3]
[341216850,1730663434488,-300.0,0.00037999,10]
[341216851,1730663434498,-300.0,0.00037999,10]
[341216852,1730663434508,-216.33440897,0.00038,2]
[341216853,1730663434518,-155610.84004304,0.00038,3]
[341216854,1730663434531,-137422.94720003,0.00038,3]
[341216855,1730663434542,-414.40144149,0.00038,3]
[341216856,1730663434554,-368.007,0.00038,3]
[341216857,1730663434565,-3324.06493,0.00038,3]
[341216859,1730663437864,-4771.32537101,0.00028995,2]
[341216860,1730663437888,-971.52788779,0.00028995,2]
[341216861,1730663437899,-439.15254116,0.00028995,2]
[341216862,1730663437909,-500.0,0.00037588,2]
[341216863,1730663437919,-500.0,0.00037862,2]
[341216864,1730663437929,-500.0,0.00037973,5]
[341216865,1730663437938,-560.44143273,0.00038,3]
[341216866,1730663437950,-13588.36813563,0.00038,3]
[341216867,1730663437962,-380.89584149,0.00038,3]
[341216882,1730663439860,-1259.96086,0.00038,3]
[341216894,1730663439978,-34383.59088251,0.00038,3]
[341216900,1730663440032,-412.41079924,0.00038,3]
[341216904,1730663440110,-367.385,0.00038,3]
[341216905,1730663440186,-2025.26791969,0.00038,3]
[341216906,1730663440197,-4277.29573767,0.00038,3]
[341216907,1730663440260,-2970.03722,0.00038,3]
[341216908,1730663440271,-690.34200092,0.00038,3]
[341216917,1730663442842,-6182.00579996,0.0002975,2]
[341216918,1730663442852,-697.37615204,0.00038,3]
[341216925,1730663445799,-6901.00735874,0.00038,3]
[341216927,1730663446055,-758.88288825,0.00038,3]
[341216928,1730663446067,-1716.02688277,0.00038,3]
[341216934,1730663826564,155.89,0.00015342,2]
[341216935,1730663830520,178.417,0.00015111,2]
[341216949,1730664631927,-250.0,0.00021,2]
[341216950,1730664631938,-1489.47643786,0.00021,2]
[341216951,1730664631949,-173.62,0.00022588,2]
[341216952,1730664631959,-702.91,0.00022588,2]
[341216953,1730664631969,-300.0,0.00023,2]
[341216954,1730664631979,-350.0,0.00025,2]
[341216955,1730664631988,-1600.0,0.00026399,2]
[341216956,1730664631998,-999.99,0.00026399,2]
[341216957,1730664632008,-163.87041872,0.000264,2]
[341216958,1730664632017,-150.99,0.000264,2]
[341216959,1730664632026,-9999.99,0.000264,2]
[341216960,1730664632036,-150.0,0.000266,2]
[341216961,1730664632046,-1526.0,0.00026874,2]
[341216962,1730664632056,-400.0,0.00027,2]
[341216963,1730664632065,-408.22,0.00027402,2]
[341216964,1730664632076,-250.0,0.00027406,2]
[341216965,1730664632085,-200.0,0.00027481,2]
[341216966,1730664632094,-1626.0,0.000275,2]
[341216967,1730664632104,-23890.0,0.00028024,2]
[341216968,1730664632113,-250.0,0.00028329,2]
[341216969,1730664632125,-150.0,0.0002836,7]
[341216970,1730664632137,-500.0,0.00028596,2]
[341216971,1730664632147,-764.83,0.00028645,2]
[341216972,1730664632157,-575.93,0.00028762,2]
[341216973,1730664632167,-155.89,0.00028858,2]
[341216974,1730664632177,-450.0,0.00029,2]
[341216975,1730664632186,-388.76,0.00029057,2]
[341216976,1730664632195,-500.0,0.000291,2]
[341216977,1730664632204,-168.41,0.00029224,2]
[341216978,1730664632213,-162.67634678,0.000299,2]
[341216979,1730664632222,-179.6295899,0.0002999,2]
[341216980,1730664632233,-500.0,0.00029999,2]
[341216981,1730664632244,-500.0,0.00029999,2]
[341216982,1730664632255,-417.78454109,0.00029999,2]
[341216983,1730664632265,-499.67475,0.0003,2]
[341216984,1730664632276,-499.67475,0.0003,2]
[341216985,1730664632285,-18154.12719451,0.0003,2]
[341216986,1730664632297,-1957.92080336,0.0003,2]
[341216988,1730664632311,-4057.61514411,0.0003,2]
[341216990,1730664632325,-106038.95664062,0.0003,2]
[341216993,1730664632345,-603.03497768,0.0003,2]
[341216995,1730664632356,-915.29022052,0.0003,2]
[341216997,1730664632371,-2135.8388,0.0003,2]
[341216999,1730664632382,-10552.6900996,0.0003,2]
[341217019,1730664637935,-3461.9,0.000209,2]
[341217020,1730664637990,-346.0,0.000209,2]
[341217023,1730664638045,-4907.79396,0.000209,2]
[341217032,1730664640028,-2055.80102576,0.000209,2]
[341217033,1730664640037,-196.63,0.000266,2]
[341217034,1730664640047,-11581.38897424,0.0003,2]
[341217035,1730664640237,-403.78489023,0.0003,2]
[341217036,1730664640292,-331.15172322,0.0003,2]
[341217037,1730664640303,-1944.55994,0.0003,2]
[341217066,1730664646036,-11238.1618,0.00020795,2]
[341217067,1730664646274,-863.9335,0.00020795,2]
[341217068,1730664646296,-250.77607712,0.00020795,2]
[341217072,1730665444894,156.8,0.00015342,2]
[341217073,1730665449281,151.3525,0.00015097,2]
[341217074,1730665508426,49357.5405,0.00016,2]
[341217075,1730665508451,50000.0,0.00016,2]
[341217076,1730665508476,50000.0,0.00016,2]
[341217077,1730665508500,50000.0,0.00016,2]
[341217078,1730665508526,2502555.41928579,0.00016,2]
[341217124,1730665832244,-365.22051436,0.0002,2]
[341217125,1730665832254,-836.7,0.00020598,2]
[341217126,1730665832265,-160.53,0.0002068,2]
[341217127,1730665832274,-824.6525,0.00020695,2]
[341217128,1730665832284,-3105.14114306,0.000209,2]
[341217129,1730665832293,-8143.66660026,0.000209,2]
[341217130,1730665832303,-1136.65309496,0.00021,2]
[341217131,1730665832312,-187.55154526,0.00021,2]
[341217132,1730665832322,-25662.3,0.00021412,2]
[341217133,1730665832332,-2115.004583,0.00021412,2]
[341217134,1730665832342,-4471.43005085,0.0002152,2]
[341217135,1730665832352,-300.0,0.00021999,2]
[341217136,1730665832361,-150.99,0.00021999,2]
[341217137,1730665832370,-36592.10465152,0.00022,2]
[341217138,1730665832382,-1412.39714948,0.00022,2]
[341217140,1730665838239,-21999.616,0.00022,2]
[341217141,1730665838295,-13308.29166186,0.00022,2]
[341217142,1730665838306,-8306.42436913,0.00022,2]
[341217148,1730665840123,-322.97574997,0.00022,2]
[341217149,1730665840446,-744.9383,0.00022,2]
[341217170,1730665843126,-250.0,0.00021,2]
[341217171,1730665843137,-2148.97951036,0.00022,2]
[341217180,1730665846215,-7020.43637235,0.00022,2]
[341217181,1730665846224,-243.9986073,0.00022,2]
[341217182,1730665846233,-997.43138506,0.00022,2]
[341217183,1730665846243,-228.84258585,0.0002211,2]
[341217184,1730665846251,-8431.52498945,0.000225,2]
[341217185,1730665846269,-21698.08354,0.000225,2]
[341217186,1730665846280,-2887.08,0.000225,2]
[341217187,1730665846289,-1133.8,0.00022525,2]
[341217188,1730665846299,-164.95576904,0.000227,2]
[341217189,1730665846308,-836.7,0.00022862,2]
[341217190,1730665846317,-478.39,0.00023,2]
[341217191,1730665846327,-300.0,0.00023,2]
[341217192,1730665846336,-266.20719284,0.0002301,2]
[341217193,1730665846345,-48983.28809877,0.000232,2]
[341217194,1730665846356,-565.155284,0.0002322,2]
[341217195,1730665846365,-2704.52,0.00023676,2]
[341217196,1730665846375,-170.06,0.00023732,2]
[341217197,1730665846385,-286.74664146,0.000239,2]
[341217198,1730665846394,-163.92313314,0.000239,2]
[341217199,1730665846403,-104664.66275686,0.00023922,2]
[341217200,1730665846415,-40540.0,0.00023922,2]
[341217201,1730665846426,-3433.09428,0.00023922,2]
[341217202,1730665846437,-1745.7,0.00023922,2]
[341217208,1730666540335,155.89,0.00015342,2]
[341217209,1730666543954,166.654,0.00015111,2]
[341217305,1730667032318,-160.53,0.00018451,2]
[341217306,1730667032329,-786.46,0.00020985,2]
[341217307,1730667032342,-177.95,0.00022277,2]
[341217308,1730667032352,-511.818,0.00022783,2]
[341217309,1730667032362,-231.14,0.0002282,2]
[341217310,1730667032373,-1000.0,0.00022863,2]
[341217311,1730667032384,-23900.0,0.00022883,2]
[341217312,1730667032396,-200.0,0.00022983,2]
[341217313,1730667032406,-7468.75294034,0.00022983,2]
[341217314,1730667032417,-2531.23705966,0.00022983,2]
[341217315,1730667032428,-6773.94,0.00023,2]
[341217316,1730667032437,-2682.01,0.00023044,2]
[341217317,1730667032448,-364.08423836,0.00023085,2]
[341217318,1730667032461,-52.11576164,0.00023085,2]
[341217319,1730667032470,-391.01,0.00023114,2]
[341217320,1730667032479,-250.0,0.00023114,2]
[341217321,1730667032489,-164.54,0.00023127,2]
[341217322,1730667032498,-786.46,0.00023249,2]
[341217323,1730667032507,-177.95,0.0002353,2]
[341217324,1730667032517,-300.0,0.00023679,2]
[341217325,1730667032526,-63188.62137521,0.0002368,2]
[341217326,1730667032538,-812.55539425,0.0002368,2]
[341217327,1730667032562,-259.38534822,0.0002368,2]
[341217359,1730667038569,-686.71,0.0002368,2]
[341217361,1730667038581,-21582.26743187,0.0002368,2]
[341217363,1730667038590,-22223.54974815,0.0002369,2]
[341217365,1730667038601,-258.07197735,0.00023843,2]
[341217366,1730667038610,-163.92313312,0.00023843,2]
[341217368,1730667038620,-29804.20808186,0.00023922,2]
[341217379,1730667038786,-20706.94409178,0.00023922,2]
[341217390,1730667040288,-14141.7985486,0.00023922,2]
[341217391,1730667040301,-1231.95,0.00023922,2]
[341217393,1730667040312,-406.33918522,0.00023922,2]
[341217395,1730667040665,-3491.3688,0.00023922,2]
[341217396,1730667040722,-1500.58795,0.00023922,2]
[341217416,1730667043656,-1284.20360735,0.00023922,2]
[341217417,1730667043667,-669.19600006,0.00023922,2]
[341217418,1730667043765,-50130.70468253,0.00023922,2]
[341217436,1730667046337,-3446.85,0.00023922,2]
[341217437,1730667046446,-619.40173789,0.00023922,2]
[341217438,1730667046458,-556.25599846,0.00023922,2]
[341217445,1730667047096,-3452.892,0.00023922,2]
[341217447,1730667210912,1000.0,0.00016,10]
[341217489,1730668176947,156.81,0.00015342,2]
[341217493,1730668231439,-160.53,0.0001822,2]
[341217494,1730668231452,-779.61,0.00020768,2]
[341217495,1730668231462,-1078.090384,0.00020895,2]
[341217496,1730668231601,-725.567576,0.00020895,2]
[341217497,1730668231613,-250.0,0.00021,2]
[341217498,1730668231623,-724.88741679,0.00021869,2]
[341217499,1730668231634,-118.91558392,0.000219,2]
[341217500,1730668231657,-42.14241608,0.000219,2]
[341217501,1730668231667,-210.85,0.00021918,2]
[341217502,1730668231677,-1286.97278578,0.00021918,2]
[341217503,1730668231690,-406.46096392,0.00021918,2]
[341217504,1730668231767,-2118.2362503,0.00021918,2]
[341217505,1730668231778,-190.42,0.00022037,2]
[341217506,1730668231789,-2175.65215958,0.00022037,2]
[341217507,1730668231800,-737.10112306,0.00022037,2]
[341217538,1730668237521,-299.58797889,0.00022037,2]
[341217540,1730668237577,-778.16139346,0.00022037,2]
[341217541,1730668237589,-1808.38775576,0.00022037,2]
[341217542,1730668237600,-699.71368841,0.00022037,2]
[341217543,1730668237634,-3501.38590084,0.00022037,2]
[341217544,1730668237644,-999.99,0.00022037,2]
[341217545,1730668237653,-500.0,0.00022164,2]
[341217546,1730668237662,-150.99,0.00022171,2]
[341217547,1730668237671,-764.02,0.00022231,2]
[341217548,1730668237680,-181.47,0.00022273,2]
[341217549,1730668237689,-800.0,0.00022277,2]
[341217550,1730668237698,-184.91,0.00022505,2]
[341217551,1730668237708,-4103.88,0.00022541,2]
[341217552,1730668237717,-250.0,0.0002256,2]
[341217553,1730668237726,-9307.87811844,0.00022621,2]
[341217554,1730668237741,-720.62291816,0.00022621,2]
[341217555,1730668237751,-694.83,0.00022621,2]
[341217556,1730668237908,-1800.83630289,0.00022621,2]
[341217557,1730668237919,-1220.78618031,0.00022621,2]
[341217558,1730668237930,-2473.0744563,0.00022621,2]
[341217571,1730668239484,-752.89945,0.00022621,2]
[341217572,1730668239540,-6929.0725739,0.00022621,2]
[341217573,1730668239550,-564.55,0.00022644,2]
[341217574,1730668239559,-3011.64,0.00022645,2]
[341217575,1730668239569,-1001.37,0.00022671,2]
[341217576,1730668239578,-660.89,0.00022686,2]
[341217577,1730668239588,-459.4,0.00022686,2]
[341217578,1730668239597,-239.41,0.00022695,2]
[341217579,1730668239607,-532.44,0.00022721,2]
[341217580,1730668239617,-1617.27,0.00022725,2]
[341217581,1730668239626,-161.376,0.0002278,10]
[341217582,1730668239636,-900.0,0.00022825,2]
[341217583,1730668239645,-1950.09696756,0.00022838,2]
[341217584,1730668239657,-865.77499999,0.00022838,2]
[341217585,1730668239668,-488.37803245,0.00022838,2]
[341217586,1730668239678,-300.0,0.00023,2]
[341217587,1730668239688,-779.61,0.00023032,2]
[341217588,1730668239697,-250.0,0.00023038,2]
[341217589,1730668239707,-196.32,0.00023111,2]
[341217590,1730668239716,-200.0,0.00023133,2]
[341217591,1730668239726,-190.42,0.00023277,2]
[341217592,1730668239735,-156.64,0.00023386,2]
[341217593,1730668239745,-156.64,0.00023444,2]
[341217594,1730668239754,-156.64,0.00023503,2]
[341217595,1730668239763,-156.64,0.00023561,2]
[341217596,1730668239773,-217.2645278,0.00023596,2]
[341217597,1730668239788,-18.4954722,0.00023596,2]
[341217598,1730668239798,-156.64,0.0002362,2]
[341217599,1730668239807,-184.91,0.00023631,2]
[341217600,1730668239817,-166.88,0.00023732,2]
[341217601,1730668239826,-1830.5445308,0.00023922,2]
[341217602,1730668240004,-251.52400367,0.00023922,2]
[341217603,1730668240015,-34546.97676795,0.00023922,2]
[341217610,1730668242520,-5017.313864,0.00023922,2]
[341217661,1730668245595,-11173.67738999,0.00023922,2]
[341217662,1730668245604,-971.64190633,0.00024,2]
[341217663,1730668245614,-775.16565244,0.0002402,2]
[341217664,1730668245624,-200.0,0.00024199,2]
[341217665,1730668245634,-401.23556866,0.0002421,2]
[341217666,1730668245645,-3517.03834267,0.0002421,2]
[341217667,1730668245657,-162.67566919,0.00024233,2]
[341217668,1730668245667,-500.0,0.00024233,2]
[341217669,1730668245676,-16873.00018046,0.00024234,2]
[341217675,1730668417665,1519.09,0.00016,2]
[341217676,1730668504546,500.91,0.00026,30]
[341217678,1730668912966,158.23,0.00015342,2]
[341217681,1730669108027,425355.35303634,0.00016,2]
[341217682,1730669114053,151.353,0.00015308,2]
[341217683,1730669130324,2846.68058883,0.000101,2]
[341217700,1730669245216,246.87965014,0.000101,2]
[341217721,1730669284669,3629798.91977935,0.00015,2]
[341217722,1730669315257,14407.32472116,0.000129,2]
[341217734,1730669420416,155.97,0.00015342,2]
[341217754,1730669431655,-190.8,0.0001823,2]
[341217755,1730669431665,-200.0,0.0002,5]
[341217756,1730669431674,-2312.00168932,0.0002,7]
[341217757,1730669431770,-446.12471038,0.0002,7]
[341217758,1730669431780,-824.18,0.00020932,2]
[341217759,1730669431789,-1540.14980589,0.00021,2]
[341217760,1730669431798,-1692.10076,0.00021513,2]
[341217761,1730669431807,-170.07810867,0.00021722,2]
[341217762,1730669431816,-20.19652665,0.00021822,2]
[341217763,1730669431828,-250.27487335,0.00021822,2]
[341217764,1730669431837,-1111.9702,0.00021822,2]
[341217765,1730669431846,-197.96,0.00022152,2]
[341217766,1730669431855,-190.42,0.0002263,2]
[341217767,1730669431864,-337.16395665,0.0002263,2]
[341217768,1730669431886,-1337.15,0.0002263,2]
[341217769,1730669431897,-1464.08839971,0.0002263,2]
[341217831,1730669437729,-2105.15940939,0.0002263,2]
[341217832,1730669437741,-1428.63920147,0.0002263,2]
[341217835,1730669437788,-185.67903278,0.0002263,2]
[341217836,1730669437797,-473.8,0.0002263,2]
[341217837,1730669437806,-708.07,0.00022778,2]
[341217838,1730669437815,-250.0,0.00022785,2]
[341217839,1730669437824,-157.56,0.00022941,2]
[341217840,1730669437834,-86.91578266,0.00022975,2]
[341217841,1730669437849,-113.08421734,0.00022975,2]
[341217842,1730669437858,-200.0,0.00023,2]
[341217843,1730669437867,-640.0,0.00023039,2]
[341217844,1730669437876,-123.72578266,0.00023071,2]
[341217845,1730669437965,-1421.55673375,0.00023071,2]
[341217858,1730669439770,-2982.80017257,0.00023071,2]
[341217859,1730669439782,-1234.73660592,0.00023071,2]
[341217860,1730669439793,-2200.5035289,0.00023071,2]
[341217861,1730669439946,-14442.9568513,0.00023071,2]
[341217862,1730669440064,-1493.7203249,0.00023071,2]
[341217863,1730669440075,-999.99,0.00023071,2]
[341217864,1730669440086,-184.91,0.00023076,2]
[341217865,1730669440095,-428.25,0.00023092,2]
[341217866,1730669440104,-200.0,0.00023115,2]
[341217867,1730669440113,-782.43,0.00023139,2]
[341217868,1730669440122,-250.0,0.00023177,2]
[341217869,1730669440131,-824.18,0.00023196,2]
[341217870,1730669440140,-282.27,0.00023306,2]
[341217871,1730669440149,-1695.37,0.00023504,2]
[341217872,1730669440159,-500.0,0.0002365,2]
[341217873,1730669440168,-500.0,0.0002365,2]
[341217874,1730669440177,-500.0,0.0002365,2]
[341217875,1730669440186,-500.0,0.0002365,2]
[341217876,1730669440195,-500.0,0.0002365,2]
[341217877,1730669440204,-500.0,0.0002365,2]
[341217878,1730669440213,-500.0,0.0002365,2]
[341217879,1730669440222,-500.0,0.0002365,2]
[341217880,1730669440231,-394.895332,0.0002365,2]
[341217881,1730669440241,-436.20307847,0.0002365,2]
[341217882,1730669440250,-500.0,0.0002365,2]
[341217883,1730669440259,-227.12938384,0.0002365,2]
[341217884,1730669440268,-500.0,0.0002365,2]
[341217885,1730669440277,-534.98975811,0.0002365,2]
[341217886,1730669440286,-500.0,0.0002365,2]
[341217887,1730669440295,-499.99999999,0.0002365,2]
[341217888,1730669440304,-30171.93328087,0.00023651,2]
[341217889,1730669440317,-1452.06671913,0.00023651,2]
[341217890,1730669440327,-234.02,0.00023793,2]
[341217891,1730669440336,-234.02,0.00023806,2]
[341217892,1730669440345,-234.02,0.00023818,2]
[341217893,1730669440354,-234.02,0.00023831,2]
[341217894,1730669440364,-168.17,0.00023833,2]
[341217895,1730669440374,-234.02,0.00023843,2]
[341217896,1730669440383,-234.02,0.00023856,2]
[341217897,1730669440393,-160.39,0.00023862,2]
[341217898,1730669440402,-234.02,0.00023868,2]